Cogmind - Beta 13 @@@ ROGUE MODE // 2024.07.28 @ 14:15:56 Player: Sgt. SmokeWeed Result: Destroyed by as-50593 with Assembled Rifle Performance ------------- Evolutions (0) 0 Regions Visited (2) 400 Robots Destroyed (16) 80 Value Destroyed (464) 464 Prototype IDs (0) 0 Alien Tech Used (0) 0 Bonus (0) 0 TOTAL SCORE: 944 Bonus ------- None Cogmind --------- Core Integrity 0/250 Matter 300/300 Energy 265/265 System Corruption 0% Temperature Cool (0) Movement Treading (160) Location -10/Mines Parts ------- > --- POWER (1) -------- Improved Ion Engine > --- PROPULSION (2) --- Light Treads Light Treads > --- UTILITY (2) ------ Light Armor Plating > --- WEAPON (2) ------- Heavy Assault Rifle Heavy Assault Rifle > --- INVENTORY (5) ---- (None) Peak State ------------ > --- POWER ------------ Improved Ion Engine > --- PROPULSION ------- Light Treads Light Treads > --- UTILITY ---------- Heat Sink Light Armor Plating > --- WEAPON ----------- Assault Rifle Heavy Assault Rifle > --- INVENTORY -------- (None) [Rating: 9] Favorites ----------- Power Light Ion Engine Engine Light Ion Engine Propulsion Light Treads Treads Light Treads Utility Light Armor Plating Device Heat Sink Protection Light Armor Plating Weapon Assault Rifle Ballistic Gun Assault Rifle Build | -11 -10 -10 ------- Run | Yrd Mat Min Slots Evolved . | . . . Power . | . . . Propulsion . | . . . Utility . | . . . Weapon . | . . . Parts Attached 13 | 5 1 7 Power 2 | 1 . 1 Engine 2 | 1 . 1 Core . | . . . Reactor . | . . . Propulsion 4 | 2 . 2 Treads 4 | 2 . 2 Leg . | . . . Wheel . | . . . Hover . | . . . Flight . | . . . Utility 2 | . . 2 Device 1 | . . 1 Storage . | . . . Processor . | . . . Hackware . | . . . Protection 1 | . . 1 Artifact . | . . . Weapon 5 | 2 1 2 Energy Gun . | . . . Energy Cannon . | . . . Ballistic Gun 5 | 2 1 2 Ballistic Cannon . | . . . Launcher . | . . . Special Weapon . | . . . Impact Weapon . | . . . Slashing Weapon . | . . . Piercing Weapon . | . . . Special Melee Weapon . | . . . Unidentified Prototypes . | . . . Parts Lost 5 | . . 5 Power 1 | . . 1 Propulsion 2 | . . 2 Utility . | . . . Weapon 2 | . . 2 Highest Loss Streak 3 | . . 3 To Critical Strikes . | . . . Average Slot Usage (%) 69 | . 71 67 Engine 12 | . 14 9 Treads 27 | . 28 27 Protection 2 | . . 5 Ballistic Gun 26 | . 28 24 Naked Turns . | . . . Heaviest Build 16 | 7 7 16 Greatest Support 40 | 40 40 40 Greatest Overweight (x) . | . . . Average Overweight (x) . | . . . Largest Inventory Capacity 5 | 5 5 5 Average Capacity 5 | 5 5 5 Most Carried 1 | . 1 1 Average Carried . | . . . Final Capacity 5 | 5 5 5 Final Carried 1 | . 1 . Class Distribution -------------------- 89% | Mutant 10% | Scavenger-Mutant Dominant Class ---------------- Mutant | -10/Materials Mutant | -10/Mines Resources | -11 -10 -10 ----------- Run | Yrd Mat Min Matter Collected 668 | 169 251 248 Remotely . | . . . Salvage Created 691 | . 301 390 Parts 34 | . 13 21 Haulers Intercepted 1 | . 1 . Recyclers Shooed . | . . . Parts Field Recycled . | . . . Retrieved Matter . | . . . Parts Self-Destructed . | . . . Prevented . | . . . Kills | -11 -10 -10 ------- Run | Yrd Mat Min Combat Hostiles Destroyed 14 | . 5 9 Guns 14 | . 5 9 Classes Destroyed 7 | . 3 4 Worker 1 | . 1 . Hauler 1 | . 1 . Recycler 1 | . . 1 Swarmer 2 | . . 2 Grunt 9 | . 5 4 Sentry 2 | . . 2 Assembled 1 | . . 1 Best Kill Streak 6 | . 2 6 Combat Bots Only 5 | . 2 5 Max Kills in Single Turn 1 | . 1 1 Gunslinging . | . . . Exploded . | . . . Melee . | . . . Uniques/NPCs Destroyed . | . . . Combat | -11 -10 -10 -------- Run | Yrd Mat Min Hostile Shots Fired 106 | . 18 88 Missed 24 | . 6 18 Damage Taken 1017 | . 133 884 Core 250 | . 46 204 Absorbed by Shields . | . . . Core Remaining (%) 100 | 100 . . Volleys Fired 71 | . 27 44 Largest 2 | . 2 2 Hottest 46 | . 40 46 Shots Fired 121 | . 54 67 Gun 121 | . 54 67 Cannon . | . . . Launcher . | . . . Special . | . . . Kinetic 121 | . 54 67 Thermal . | . . . Explosive . | . . . Electromagnetic . | . . . Robot Hit Streak 12 | . 9 12 Robot Miss Streak 5 | . 2 5 Penetration Max . | . . . Secondary Targets 4 | . . 4 Max Gunslinging Chain 1 | . . 1 Shots Hit Robots 87 | . 40 47 Core Hits 33 | . 14 19 Critical Kills . | . . . Critical Parts Destroyed 1 | . 1 . Critical Strikes 1 | . 1 . Destroy 1 | . 1 . Melee Attacks . | . . . Impact . | . . . Slashing . | . . . Piercing . | . . . Sneak Attacks . | . . . Combat Hostiles . | . . . Follow-up Attacks . | . . . Damage Inflicted 1161 | . 509 652 Guns 1161 | . 509 652 Cannons . | . . . Explosions . | . . . Melee . | . . . Ramming . | . . . Kinetic 1161 | . 509 652 Thermal . | . . . Explosive . | . . . Electromagnetic . | . . . Impact . | . . . Slashing . | . . . Piercing . | . . . Highest Corruption . | . . . Average Corruption . | . . . Corruption Purged . | . . . Corruption Blocked . | . . . Overload Shots . | . . . Overflow Damage . | . . . Projectiles . | . . . Explosions . | . . . Melee . | . . . Knockbacks . | . . . Impact . | . . . Kinetic . | . . . Secondary . | . . . Self-Inflicted Damage . | . . . Shots . | . . . Rammed 1 | . 1 . Targets Rammed 1 | . 1 . Kicked . | . . . Crushed . | . . . Highest Temperature 23 | . 8 23 Average Temperature 8 | . 3 8 Received Heat Transfer 399 | . 78 321 Siege Activations . | . . . Robots Corrupted . | . . . Combat Hostiles . | . . . Parts Fried . | . . . Impact Corruptions . | . . . Robots Melted . | . . . Combat Hostiles . | . . . Parts Melted . | . . . Heat Transferred . | . . . Parts Sabotaged . | . . . Parts Stolen . | . . . Parts Stripped . | . . . Power Chain Reactions . | . . . Alert | -11 -10 -10 ------- Run | Yrd Mat Min Peak Influence 277 | . 187 277 Initial 72 | . . 72 Average 115 | . 93 163 Maximum Alert Level 1 | . . 1 Low Security (%) 83 | 100 100 60 Level 1 16 | . . 39 Level 2 . | . . . Level 3 . | . . . Level 4 . | . . . Level 5 . | . . . High Security . | . . . Max Security . | . . . Squads Dispatched 2 | . 2 . Investigation . | . . . Extermination . | . . . Reinforcement 2 | . 2 . Assault . | . . . Garrison . | . . . Intercept . | . . . Searches Triggered . | . . . Construction Impeded . | . . . Haulers Reinforced . | . . . Active Scanning Responses . | . . . Cargo Convoy Interrupts . | . . . Stealth | -11 -10 -10 --------- Run | Yrd Mat Min Distress Signals 1 | . . 1 Communications Jammed . | . . . Distress Signals . | . . . Times Spotted 28 | . 9 19 Peak Tracking Total 7 | . 2 7 Tactical Retreats 3 | . 1 2 Traps | -11 -10 -10 ------- Run | Yrd Mat Min Traps Triggered 1 | . 1 . Indirectly . | . . . Trap Hack Attempts . | . . . Triggered . | . . . Disarmed . | . . . Reprogrammed . | . . . Reused . | . . . Traps Extracted . | . . . Installed . | . . . Triggered . | . . . Machines | -11 -10 -10 ---------- Run | Yrd Mat Min Machines Disabled . | . . . Max in Single Turn . | . . . Machines Repaired . | . . . Machines Dismantled . | . . . Machines Sabotaged . | . . . Overloaded Fab Kills . | . . . Hacking | -11 -10 -10 --------- Run | Yrd Mat Min Machines Accessed 2 | . 2 . Terminals 2 | . 2 . Fabricators . | . . . Repair Stations . | . . . Recycling Units . | . . . Scanalyzers . | . . . Garrison Access . | . . . Total Hacks 6 | . 6 . Successful . | . . . Failed 6 | . 6 . Catastrophic 2 | . 2 . Database Lockouts . | . . . Manual 6 | . 6 . Terminals 6 | . 6 . Fabricators . | . . . Repair Stations . | . . . Recycling Units . | . . . Scanalyzers . | . . . Garrison Access . | . . . Terminal Hacks . | . . . Fabricator Hacks . | . . . Repair Station Hacks . | . . . Recycling Unit Hacks . | . . . Scanalyzer . | . . . Garrison Access Hacks . | . . . Unauthorized Hacks . | . . . Terminals . | . . . Fabricators . | . . . Repair Stations . | . . . Recycling Units . | . . . Scanalyzers . | . . . Garrison Access . | . . . Data Cores Recovered . | . . . Used . | . . . Hacking Detections 2 | . 2 . Full Trace Events . | . . . Feedback Events . | . . . Feedback Blocked . | . . . Robot Schematics Acquired . | . . . Robots Built . | . . . Authchips . | . . . Time . | . . . Total Robot Build Rating . | . . . Part Schematics Acquired . | . . . Parts Built . | . . . Authchips . | . . . Time . | . . . Total Part Build Rating . | . . . Parts Repaired . | . . . Time . | . . . Parts Recycled . | . . . Recycled Matter . | . . . Retrieved Matter . | . . . Retrieved Components . | . . . Parts Scanalyzed . | . . . Part Schematics Acquired . | . . . Parts Damaged . | . . . Bothacking | -11 -10 -10 ------------ Run | Yrd Mat Min Used RIF Installer . | . . . Robots Hacked . | . . . Non-combat . | . . . Combat . | . . . Robot Hacks Applied . | . . . Relay Couplers Released . | . . . Fabnet Peak Effective % . | . . . Robots Rewired . | . . . Allies Hacked . | . . . Hacks Repelled . | . . . Allies | -11 -10 -10 -------- Run | Yrd Mat Min Total Allies . | . . . Largest Group . | . . . Highest-Rated Group . | . . . Highest-Rated Ally . | . . . Total Orders . | . . . Ally Attacks . | . . . Total Damage . | . . . Kills . | . . . Allies Corrupted . | . . . Allies Melted . | . . . Intel | -11 -10 -10 ------- Run | Yrd Mat Min Robot Analysis Total . | . . . Derelict Logs Recovered . | . . . Drone Launches . | . . . Drone Recoveries . | . . . Exploration | -11 -10 -10 ------------- Run | Yrd Mat Min Turns Passed 547 | 45 274 228 Spaces Moved 212 | 27 118 67 Core 4 | 4 . . Treads 208 | 23 118 67 Legs . | . . . Wheels . | . . . Hover . | . . . Flight . | . . . Fastest Speed 50 | 50 160 160 Average Speed 157 | 143 160 160 Slowest Speed 160 | 160 160 160 Overloaded Moves . | . . . Propulsion Burnouts . | . . . Robots Hopped . | . . . Cave-ins Triggered . | . . . Exploration Rate (%) 14 | 3 24 17 Regions Visited 2 Branch Regions 1 Pre-discovered Areas . | . . . Known Exits Taken . | . . . Unknown Exits Taken 2 | 1 1 . Scrap Searched . | . . . Spaces Dug . | . . . Terrain Destroyed . | . . . Melee . | . . . Projectile . | . . . AOE . | . . . Terrain Rammed . | . . . Walls Destroyed . | . . . Machines Disabled . | . . . Actions | -11 -10 -10 --------- Run | Yrd Mat Min Total 298 | 31 148 119 Wait 1 | . 1 . Move 210 | 26 117 67 Hop . | . . . Pick Up 1 | . 1 . Fast Attach 12 | 5 1 6 Attach 1 | . . 1 Detach . | . . . Swap . | . . . Drop 1 | . . 1 Fire 71 | . 27 44 Melee . | . . . Ram . | . . . Kick . | . . . Crush 1 | . 1 . Escape Stasis . | . . . Rewire . | . . . Trap . | . . . Miscellaneous . | . . . Route ------- -11/Scrapyard -10/Materials -10/Mines History --------- Turn | Location | Event 16 | -11/Scrapyard | Discovered new exit (range 15) 46 | -11/Scrapyard | Entered Materials 274 | -10/Materials | Discovered new exit (range 7) 302 | -10/Materials | Build established: Mutant 320 | -10/Materials | Entered Mines 365 | -10/Mines | Met a Derelict bent on vengeance 424 | -10/Mines | Core integrity fell below 50% 456 | -10/Mines | Lost 3 parts (1p1n1w) 515 | -10/Mines | Core integrity fell below 20% 519 | -10/Mines | Assembled infested the area 524 | -10/Mines | Assisted by a Guerilla fighting off Assembled 548 | -10/Mines | Destroyed by as-50593 with Assembled Rifle Last Messages --------------- ALERT: Infestation in the mines, dispatching Demolisher response squad. Acquired Hvy. Assault Rifle. 54-42N(h): "I'll hold them off! Go on ahead or try to find another way!" HV Slug penetrates G-47 Trooper. G-47 Trooper suffers critical hit (Destroy). G-47 Trooper destroyed. A derelict emerges from the shadows: "You need to get out of here! I've been tracking a group of Assembled to figure out where they're coming from, and they're closing on this area, come on!" G-47 Trooper destroyed. Switching to secondary target: S-10 Pest. HV Slug penetrates Wall. HV Slug penetrates S-10 Pest. S-10 Pest suffers critical hit (Destroy). S-10 Pest destroyed. Acquired 50 matter. Acquired 6 matter. as-45847 destroyed. Switching to secondary target: as-50593. Acquired 6 matter. Map ----- +----------------------------------------------------+ | | | | | | | | | | | | | | | | | ??????????????????????????????????????????????? | | ??????????????????????????????????????????????? | | ??????????????????????????????????????????????? | | ????????????????????????###???????????????????? | | ???????????????????????## #??????????????????? | | ??????????????????????## ####??????????????? | | ??????????????######?## ########???????? | | ?????????????##" "### ##??????? | | ?????????????#!! |!## #??????? | | ?????????????#|! !]## #??????? | | ??????????????# #?## #??????? | | ?????????????###//###?## ## ##??????? | | ?????????????# #??## ### #?###???????? | | ?????????????# ##??# ##?# #???????????? | | ?????????????# #??## ##### #???????????? | | ?????????????# ##??#[#??# #???????????? | | ?????????????## = ####[#### ###???????????? | | ??????????????##!* a %@ ! #?????????????? | | ???????????????#%= ####[######?????????????? | | ?????????? aa ! ##??# #??????????????????? | | ???????? ##???#[#??????????????????? | | ???????######### #????#!#??????????????????? | | ???????????????# ##???## #??????????????????? | | ??????????????# ##????#=%#??????????????????? | | ????????????? ##?####"#[#### """??????????? | | ???????????? #???# =%==*=% """??????????? | | ??????????? ###????# ####[#### #???????? | | ??????????# ???????#????=%#??????????????????? | | ??????????# ?????????????#*#??????????????????? | | ?????????????????????????# ??????????????????? | | ????????????????????????? ??????????????????? | | ????????????????????????? ??????????????????? | | ????????????????????????? ??????????????????? | | ?????????????????????????# ??????????????????? | | ??????????????????????????" ??????????????????? | | ??????????????????????????##??????????????????? | | ??????????????????????????????????????????????? | | ??????????????????????????????????????????????? | | ??????????????????????????????????????????????? | | ??????????????????????????????????????????????? | | ??????????????????????????????????????????????? | | ??????????????????????????????????????????????? | +----------------------------------------------------+ Best States ------------- Heat Dissipation 35 Energy Generation 12 Energy Capacity 265 Matter Stores 300 Matter Capacity 300 Sight Range 16 Terrain Scan Density 10 Armor Coverage 150 Evasion (%) 40 Recoil Reduction 2 Item Schematics ----------------- None Robot Schematics ------------------ None Fabricated ------------ Nothing Alien Tech Used ----------------- None Achievements -------------- None Challenges ------------ None Game ------ Seed FlyingTerrainLance Manual? 0 Play Time 00:06:25 Cumulative 50.2 hours Start 2024.07.28 @ 14:11:35 End 2024.07.28 @ 14:15:56 Sessions 1 Manual Loads 0 Difficulty Rogue Special Mode None Game No. 114 Rogue 44 Adventurer 70 Explorer 0 Win Type - Total 0 Types 0/0/0/0/0/0/0/0/0 Lore% 34 Gallery% 37 Achievement% 30 Wizard Run 0 Options --------- Layout 0 ASCII 0 Keyboard 0 Movement Mouse Keybinds 0 Fullscreen 1 Font 24/Smallcaps Map View 76x50 Zoom Use 0% Tactical HUD 0 Map Filters NONE Filters NONE Steam 1 RUN: bc64712d-ce1d-415a-9193-03d3a49504b2